[Event "Late-Titled-Tuesday-Blitz-October-03-2023"]
[Site "Chess.com"]
[Date "2023.10.03"]
[Round "7"]
[White "WPWPWP-2015"]
[Black "Metadast"]
[Result "1-0"]
[WhiteElo "2516"]
[BlackElo "2527"]
[TimeControl "180+1"]
[EndTime "15:14:26 PDT"]
[Termination "WPWPWP-2015 won by checkmate"]

1. e4 {[%clk 0:03:00.9]} 1... e6 {[%clk 0:02:37.5]} 2. d4 {[%clk 0:02:59.7]}
2... d5 {[%clk 0:02:32.1]} 3. Nc3 {[%clk 0:02:59.5]} 3... Nf6 {[%clk 0:02:29.2]}
4. e5 {[%clk 0:02:56.5]} 4... Nfd7 {[%clk 0:02:29.1]} 5. f4 {[%clk 0:02:54.9]}
5... c5 {[%clk 0:02:30]} 6. Nf3 {[%clk 0:02:54.7]} 6... Nc6 {[%clk 0:02:30.9]}
7. Be3 {[%clk 0:02:54.5]} 7... Rb8 {[%clk 0:02:31.8]} 8. Bb5 {[%clk 0:02:52.1]}
8... Qa5 {[%clk 0:02:32.7]} 9. O-O {[%clk 0:02:47.7]} 9... a6 {[%clk 0:02:31.6]}
10. Be2 {[%clk 0:02:40.3]} 10... cxd4 {[%clk 0:02:26.4]} 11. Nxd4 {[%clk
0:02:39.6]} 11... Nxd4 {[%clk 0:02:27.3]} 12. Bxd4 {[%clk 0:02:39.4]} 12... Bc5
{[%clk 0:02:28.2]} 13. Kh1 {[%clk 0:02:34.9]} 13... Bxd4 {[%clk 0:02:25.6]} 14.
Qxd4 {[%clk 0:02:34.1]} 14... Qc5 {[%clk 0:02:26.5]} 15. Qd3 {[%clk 0:02:31.6]}
15... g6 {[%clk 0:02:22.7]} 16. a4 {[%clk 0:02:24.6]} 16... h5 {[%clk
0:02:17.3]} 17. a5 {[%clk 0:02:23.8]} 17... Qc7 {[%clk 0:02:01.5]} 18. Qd4
{[%clk 0:02:18.7]} 18... Qc5 {[%clk 0:02:00.1]} 19. Qd2 {[%clk 0:02:15.6]} 19...
Qc7 {[%clk 0:01:59.2]} 20. Bf3 {[%clk 0:02:13]} 20... Nc5 {[%clk 0:01:36.1]} 21.
Ne2 {[%clk 0:02:11.4]} 21... O-O {[%clk 0:01:20.4]} 22. Ra3 {[%clk 0:02:07.9]}
22... Qe7 {[%clk 0:00:59.4]} 23. c4 {[%clk 0:01:05.7]} 23... dxc4 {[%clk
0:00:54]} 24. Qc2 {[%clk 0:00:59.9]} 24... Bd7 {[%clk 0:00:49.8]} 25. Qxc4
{[%clk 0:00:42.4]} 25... Bb5 {[%clk 0:00:46.1]} 26. Qc1 {[%clk 0:00:35.1]} 26...
Nd3 {[%clk 0:00:40.6]} 27. Qb1 {[%clk 0:00:23.5]} 27... Rfd8 {[%clk 0:00:36.5]}
28. Nc3 {[%clk 0:00:15.3]} 28... Bc4 {[%clk 0:00:25.5]} 29. Ra4 {[%clk
0:00:15.2]} 29... Rbc8 {[%clk 0:00:22.3]} 30. Be2 {[%clk 0:00:13.6]} 30... Qc5
{[%clk 0:00:06.7]} 31. Ne4 {[%clk 0:00:13.3]} 31... Qe3 {[%clk 0:00:05.9]} 32.
Nf6+ {[%clk 0:00:09.5]} 32... Kg7 {[%clk 0:00:05.9]} 33. Bxd3 {[%clk 0:00:08.6]}
33... Bxd3 {[%clk 0:00:05.9]} 34. Qe1 {[%clk 0:00:08.5]} 34... Qc5 {[%clk
0:00:03.5]} 35. Rg1 {[%clk 0:00:08.3]} 35... Bc2 {[%clk 0:00:03.7]} 36. Ra3
{[%clk 0:00:07.6]} 36... Rd1 {[%clk 0:00:03.5]} 37. Qxd1 {[%clk 0:00:06.6]}
37... Bxd1 {[%clk 0:00:03.6]} 38. Rxd1 {[%clk 0:00:07.5]} 38... Qb5 {[%clk
0:00:03.6]} 39. Rad3 {[%clk 0:00:05.3]} 39... Qxb2 {[%clk 0:00:03.4]} 40. h3
{[%clk 0:00:04.7]} 40... Qb5 {[%clk 0:00:01.6]} 41. Rd8 {[%clk 0:00:04.3]} 41...
Rxd8 {[%clk 0:00:02.1]} 42. Rxd8 {[%clk 0:00:04.9]} 42... g5 {[%clk 0:00:02.7]}
43. Rg8+ {[%clk 0:00:04.5]} 43... Kh6 {[%clk 0:00:02.8]} 44. fxg5# {[%clk
0:00:04.9]} 1-0

[Event "Late-Titled-Tuesday-Blitz-October-03-2023"]
[Site "Chess.com"]
[Date "2023.10.03"]
[Round "7"]
[White "nitpicker"]
[Black "Qvalda"]
[Result "1-0"]
[WhiteElo "2252"]
[BlackElo "2373"]
[TimeControl "180+1"]
[EndTime "15:14:28 PDT"]
[Termination "nitpicker won on time"]

1. d4 {[%clk 0:03:00.9]} 1... e6 {[%clk 0:02:50.9]} 2. c4 {[%clk 0:03:00.3]}
2... Nf6 {[%clk 0:02:49.8]} 3. g3 {[%clk 0:02:59.3]} 3... c5 {[%clk 0:02:47.4]}
4. d5 {[%clk 0:02:58.4]} 4... exd5 {[%clk 0:02:48.3]} 5. cxd5 {[%clk 0:02:58.5]}
5... d6 {[%clk 0:02:49]} 6. Nc3 {[%clk 0:02:55.5]} 6... g6 {[%clk 0:02:49.2]} 7.
Bg2 {[%clk 0:02:54.8]} 7... Bg7 {[%clk 0:02:49.8]} 8. Nf3 {[%clk 0:02:55.2]}
8... O-O {[%clk 0:02:50.3]} 9. O-O {[%clk 0:02:53.7]} 9... Re8 {[%clk
0:02:50.8]} 10. Nd2 {[%clk 0:02:53.6]} 10... Na6 {[%clk 0:02:48.8]} 11. h3
{[%clk 0:02:48]} 11... Nc7 {[%clk 0:02:41.7]} 12. a4 {[%clk 0:02:40.6]} 12...
Rb8 {[%clk 0:02:27.9]} 13. Nc4 {[%clk 0:02:25]} 13... b6 {[%clk 0:02:25.5]} 14.
e4 {[%clk 0:02:01.5]} 14... Ba6 {[%clk 0:02:17.4]} 15. Qb3 {[%clk 0:02:00]}
15... Qd7 {[%clk 0:02:04.1]} 16. Re1 {[%clk 0:01:43.9]} 16... b5 {[%clk
0:02:03.3]} 17. axb5 {[%clk 0:01:38.6]} 17... Bxb5 {[%clk 0:01:45.8]} 18. Rxa7
{[%clk 0:01:27.7]} 18... Bxc4 {[%clk 0:01:45.4]} 19. Qxc4 {[%clk 0:01:26.3]}
19... Rb4 {[%clk 0:01:44.8]} 20. Qa2 {[%clk 0:01:19.8]} 20... Reb8 {[%clk
0:01:39.8]} 21. Qa5 {[%clk 0:01:13.1]} 21... Nfe8 {[%clk 0:01:39.3]} 22. f4
{[%clk 0:00:53.7]} 22... Bd4+ {[%clk 0:01:34.3]} 23. Kh2 {[%clk 0:00:52.7]}
23... Qc8 {[%clk 0:01:31.5]} 24. e5 {[%clk 0:00:48.1]} 24... Nb5 {[%clk
0:01:00.5]} 25. Nxb5 {[%clk 0:00:26.1]} 25... R4xb5 {[%clk 0:01:01.4]} 26. Qa6
{[%clk 0:00:21.6]} 26... Bxb2 {[%clk 0:00:49.2]} 27. exd6 {[%clk 0:00:16.7]}
27... Qxa6 {[%clk 0:00:36.6]} 28. Rxa6 {[%clk 0:00:17.6]} 28... Nf6 {[%clk
0:00:34.2]} 29. Bd2 {[%clk 0:00:13]} 29... Bd4 {[%clk 0:00:27.6]} 30. Re7 {[%clk
0:00:12.4]} 30... Rb2 {[%clk 0:00:24.2]} 31. d7 {[%clk 0:00:08.9]} 31... Rxd2
{[%clk 0:00:20.8]} 32. Rxf6 {[%clk 0:00:08.3]} 32... Bxf6 {[%clk 0:00:08]} 33.
Re8+ {[%clk 0:00:08.1]} 33... Kg7 {[%clk 0:00:08.4]} 34. Rxb8 {[%clk 0:00:08.1]}
34... c4 {[%clk 0:00:07.8]} 35. d8=Q {[%clk 0:00:08]} 35... Bxd8 {[%clk
0:00:08]} 36. Rxd8 {[%clk 0:00:08.2]} 36... c3 {[%clk 0:00:08.9]} 37. Rc8 {[%clk
0:00:08.4]} 37... c2 {[%clk 0:00:09.2]} 38. h4 {[%clk 0:00:07.3]} 38... Kf6
{[%clk 0:00:08.7]} 39. Kh3 {[%clk 0:00:07.4]} 39... h5 {[%clk 0:00:08.8]} 40.
Bf3 {[%clk 0:00:07.1]} 40... Ke7 {[%clk 0:00:08.4]} 41. Be4 {[%clk 0:00:07.2]}
41... Kd6 {[%clk 0:00:07.9]} 42. Bxc2 {[%clk 0:00:07.2]} 42... Kxd5 {[%clk
0:00:07.6]} 43. Bb3+ {[%clk 0:00:07.4]} 43... Ke4 {[%clk 0:00:06.6]} 44. Bxf7
{[%clk 0:00:08.3]} 44... Rd1 {[%clk 0:00:05.5]} 45. Bxg6+ {[%clk 0:00:07.8]}
45... Ke3 {[%clk 0:00:05.9]} 46. Bxh5 {[%clk 0:00:07.7]} 46... Kf2 {[%clk
0:00:04.8]} 47. Kg4 {[%clk 0:00:07.7]} 47... Rd7 {[%clk 0:00:04]} 48. Rc2+
{[%clk 0:00:07.5]} 48... Ke3 {[%clk 0:00:03.2]} 49. Ra2 {[%clk 0:00:06.3]} 49...
Rg7+ {[%clk 0:00:02.9]} 50. Kh3 {[%clk 0:00:06.1]} 1-0

[Event "Late-Titled-Tuesday-Blitz-October-03-2023"]
[Site "Chess.com"]
[Date "2023.10.03"]
[Round "7"]
[White "aistrel"]
[Black "jguerramzllo"]
[Result "1-0"]
[WhiteElo "2544"]
[BlackElo "2672"]
[TimeControl "180+1"]
[EndTime "15:14:30 PDT"]
[Termination "aistrel won on time"]

1. d4 {[%clk 0:03:00.9]} 1... d5 {[%clk 0:02:54.7]} 2. Bf4 {[%clk 0:03:01.2]}
2... c5 {[%clk 0:02:48.8]} 3. e3 {[%clk 0:02:59.8]} 3... Nc6 {[%clk 0:02:45.5]}
4. Nc3 {[%clk 0:03:00.1]} 4... cxd4 {[%clk 0:02:43.4]} 5. exd4 {[%clk 0:03:01]}
5... a6 {[%clk 0:02:36.9]} 6. Nf3 {[%clk 0:02:53.1]} 6... Nf6 {[%clk 0:02:34.5]}
7. Ne5 {[%clk 0:02:52.6]} 7... e6 {[%clk 0:02:20]} 8. Nxc6 {[%clk 0:02:52.2]}
8... bxc6 {[%clk 0:02:19.6]} 9. Na4 {[%clk 0:02:53.1]} 9... Bd6 {[%clk
0:01:55.6]} 10. Bxd6 {[%clk 0:02:52.4]} 10... Qxd6 {[%clk 0:01:55.7]} 11. Bd3
{[%clk 0:02:49.9]} 11... O-O {[%clk 0:01:51.6]} 12. O-O {[%clk 0:02:50.1]} 12...
a5 {[%clk 0:01:42.9]} 13. c3 {[%clk 0:02:39.2]} 13... e5 {[%clk 0:01:33.7]} 14.
Nc5 {[%clk 0:02:29]} 14... e4 {[%clk 0:01:29.3]} 15. Be2 {[%clk 0:02:26.7]}
15... Bf5 {[%clk 0:01:27.3]} 16. f3 {[%clk 0:02:22.7]} 16... Bg6 {[%clk
0:01:26.3]} 17. Qd2 {[%clk 0:02:10.5]} 17... Rfe8 {[%clk 0:01:23.6]} 18. Rae1
{[%clk 0:02:05.2]} 18... Ra7 {[%clk 0:01:16.4]} 19. fxe4 {[%clk 0:01:32.2]}
19... Nxe4 {[%clk 0:01:15.8]} 20. Nxe4 {[%clk 0:01:32]} 20... Bxe4 {[%clk
0:01:16]} 21. Bd3 {[%clk 0:01:30.2]} 21... Rae7 {[%clk 0:01:05.1]} 22. Bxe4
{[%clk 0:01:30.6]} 22... dxe4 {[%clk 0:00:55.3]} 23. Re3 {[%clk 0:01:20.8]}
23... Qd5 {[%clk 0:00:54.1]} 24. b3 {[%clk 0:01:19.8]} 24... f5 {[%clk 0:00:53]}
25. c4 {[%clk 0:01:18.9]} 25... Qd7 {[%clk 0:00:52.6]} 26. g3 {[%clk 0:01:07.6]}
26... Rf8 {[%clk 0:00:46.4]} 27. Rd1 {[%clk 0:01:05.4]} 27... f4 {[%clk
0:00:42.9]} 28. gxf4 {[%clk 0:01:04.2]} 28... Rxf4 {[%clk 0:00:43]} 29. Kh1
{[%clk 0:00:54.7]} 29... Ref7 {[%clk 0:00:41.5]} 30. Qg2 {[%clk 0:00:51.4]}
30... Rf2 {[%clk 0:00:35.5]} 31. Qg3 {[%clk 0:00:41.3]} 31... Qf5 {[%clk
0:00:32.1]} 32. Rg1 {[%clk 0:00:40.2]} 32... Rxa2 {[%clk 0:00:26.6]} 33. Qb8+
{[%clk 0:00:25.7]} 33... Rf8 {[%clk 0:00:26.3]} 34. Qc7 {[%clk 0:00:26.6]} 34...
g6 {[%clk 0:00:18.4]} 35. Qxc6 {[%clk 0:00:20.6]} 35... Qf4 {[%clk 0:00:17.3]}
36. Qe6+ {[%clk 0:00:18.5]} 36... Rf7 {[%clk 0:00:15.4]} 37. Rh3 {[%clk
0:00:16.6]} 37... Kg7 {[%clk 0:00:12]} 38. Qe5+ {[%clk 0:00:12.4]} 38... Qxe5
{[%clk 0:00:11.8]} 39. dxe5 {[%clk 0:00:13.3]} 39... Re7 {[%clk 0:00:12.2]} 40.
Re3 {[%clk 0:00:13.1]} 40... Rxe5 {[%clk 0:00:12.1]} 41. Rge1 {[%clk 0:00:14]}
41... Rb2 {[%clk 0:00:11.7]} 42. Rxe4 {[%clk 0:00:12.1]} 42... Rxe4 {[%clk
0:00:10.5]} 43. Rxe4 {[%clk 0:00:13]} 43... Rxb3 {[%clk 0:00:11]} 44. Re5 {[%clk
0:00:13.9]} 44... a4 {[%clk 0:00:10.9]} 45. Ra5 {[%clk 0:00:14.8]} 45... a3
{[%clk 0:00:11.3]} 46. Kg2 {[%clk 0:00:15.1]} 46... Rb2+ {[%clk 0:00:04.1]} 47.
Kg3 {[%clk 0:00:15.4]} 47... a2 {[%clk 0:00:04.6]} 48. h4 {[%clk 0:00:15]} 48...
Kf6 {[%clk 0:00:04.1]} 49. c5 {[%clk 0:00:14.2]} 49... Rc2 {[%clk 0:00:03.5]}
50. Kf4 {[%clk 0:00:13.1]} 50... Rc4+ {[%clk 0:00:02.9]} 51. Kg3 {[%clk
0:00:13.7]} 1-0

[Event "Late-Titled-Tuesday-Blitz-October-03-2023"]
[Site "Chess.com"]
[Date "2023.10.03"]
[Round "7"]
[White "zajka-molotok"]
[Black "Cambek64"]
[Result "1-0"]
[WhiteElo "2566"]
[BlackElo "2448"]
[TimeControl "180+1"]
[EndTime "15:14:31 PDT"]
[Termination "zajka-molotok won by resignation"]

1. e4 {[%clk 0:03:00.9]} 1... e6 {[%clk 0:02:54.6]} 2. d4 {[%clk 0:03:00.5]}
2... d5 {[%clk 0:02:54.8]} 3. exd5 {[%clk 0:03:01.4]} 3... exd5 {[%clk
0:02:54.5]} 4. Nf3 {[%clk 0:03:01.2]} 4... Nf6 {[%clk 0:02:54.9]} 5. Bd3 {[%clk
0:03:00.9]} 5... Bd6 {[%clk 0:02:54.7]} 6. Qe2+ {[%clk 0:03:00.9]} 6... Qe7
{[%clk 0:02:53.8]} 7. Qxe7+ {[%clk 0:03:00.2]} 7... Bxe7 {[%clk 0:02:52]} 8. O-O
{[%clk 0:02:59.5]} 8... O-O {[%clk 0:02:46]} 9. Bf4 {[%clk 0:02:58.9]} 9... c6
{[%clk 0:02:43.5]} 10. Re1 {[%clk 0:02:58.6]} 10... Re8 {[%clk 0:02:43.3]} 11.
Nbd2 {[%clk 0:02:54.6]} 11... h6 {[%clk 0:02:26.2]} 12. a4 {[%clk 0:02:43.1]}
12... Be6 {[%clk 0:02:24.4]} 13. h3 {[%clk 0:02:25.2]} 13... Nbd7 {[%clk
0:02:24.3]} 14. a5 {[%clk 0:02:22.6]} 14... a6 {[%clk 0:02:21.4]} 15. c3 {[%clk
0:02:21.9]} 15... Nf8 {[%clk 0:02:08.8]} 16. b4 {[%clk 0:02:19.8]} 16... N6d7
{[%clk 0:02:08.7]} 17. Nb3 {[%clk 0:02:15.1]} 17... Rad8 {[%clk 0:01:55.7]} 18.
Bc7 {[%clk 0:02:11.9]} 18... Rc8 {[%clk 0:01:53.3]} 19. Bh2 {[%clk 0:02:11.4]}
19... Rcd8 {[%clk 0:01:52.7]} 20. Re2 {[%clk 0:02:04.2]} 20... Nf6 {[%clk
0:01:35.6]} 21. Rae1 {[%clk 0:02:00.5]} 21... Ne4 {[%clk 0:01:31.6]} 22. Bxe4
{[%clk 0:01:48.3]} 22... dxe4 {[%clk 0:01:29.2]} 23. Rxe4 {[%clk 0:01:48.9]}
23... Bxb3 {[%clk 0:01:24.7]} 24. Rxe7 {[%clk 0:01:48.1]} 24... Rxe7 {[%clk
0:01:24.4]} 25. Rxe7 {[%clk 0:01:49]} 25... Rd7 {[%clk 0:01:22.5]} 26. Re8
{[%clk 0:01:46.3]} 26... f6 {[%clk 0:01:22.3]} 27. Nd2 {[%clk 0:01:36.6]} 27...
Bd5 {[%clk 0:01:21.5]} 28. Bf4 {[%clk 0:01:28.8]} 28... Kf7 {[%clk 0:01:19.5]}
29. Rb8 {[%clk 0:01:27.8]} 29... Ne6 {[%clk 0:01:18]} 30. Be3 {[%clk 0:01:26.3]}
30... Ba2 {[%clk 0:00:54.9]} 31. g4 {[%clk 0:01:14.8]} 31... Ng5 {[%clk
0:00:41.9]} 32. h4 {[%clk 0:01:11]} 32... Ne6 {[%clk 0:00:40.3]} 33. f4 {[%clk
0:01:01.3]} 33... Nf8 {[%clk 0:00:33.4]} 34. f5 {[%clk 0:00:57.9]} 34... Re7
{[%clk 0:00:28.5]} 35. Kf2 {[%clk 0:00:55.1]} 35... Bd5 {[%clk 0:00:27.1]} 36.
c4 {[%clk 0:00:49.2]} 36... Bh1 {[%clk 0:00:26.2]} 37. Nb3 {[%clk 0:00:46.6]}
37... h5 {[%clk 0:00:22.9]} 38. g5 {[%clk 0:00:39.9]} 38... fxg5 {[%clk
0:00:20.7]} 39. hxg5 {[%clk 0:00:39.9]} 39... g6 {[%clk 0:00:18.1]} 40. f6
{[%clk 0:00:39.4]} 40... Rc7 {[%clk 0:00:14.5]} 41. Bf4 {[%clk 0:00:33.8]} 41...
Rd7 {[%clk 0:00:15]} 42. Nc5 {[%clk 0:00:28.7]} 42... Rxd4 {[%clk 0:00:14.9]}
43. Rxf8+ {[%clk 0:00:26.5]} 43... Kxf8 {[%clk 0:00:14.3]} 44. Ne6+ {[%clk
0:00:27.1]} 44... Kf7 {[%clk 0:00:15.1]} 45. Nxd4 {[%clk 0:00:28]} 45... Be4
{[%clk 0:00:13.7]} 46. Nb3 {[%clk 0:00:27.1]} 46... Bd3 {[%clk 0:00:13.2]} 47.
Nc5 {[%clk 0:00:26.1]} 47... Bxc4 {[%clk 0:00:13.4]} 48. Nxb7 {[%clk 0:00:26.6]}
48... Ke6 {[%clk 0:00:12.2]} 49. Nd8+ {[%clk 0:00:20]} 49... Kd7 {[%clk
0:00:10.7]} 50. f7 {[%clk 0:00:20.2]} 50... Ke7 {[%clk 0:00:10.2]} 51. Bd6+
{[%clk 0:00:20.3]} 51... Kxd6 {[%clk 0:00:09.4]} 52. f8=Q+ {[%clk 0:00:20.3]}
1-0

[Event "Late-Titled-Tuesday-Blitz-October-03-2023"]
[Site "Chess.com"]
[Date "2023.10.03"]
[Round "7"]
[White "Hikaru"]
[Black "Denis_Makhnyov"]
[Result "1-0"]
[WhiteElo "3280"]
[BlackElo "2952"]
[TimeControl "180+1"]
[EndTime "15:14:32 PDT"]
[Termination "Hikaru won by resignation"]

1. e4 {[%clk 0:03:00.9]} 1... e5 {[%clk 0:02:59.9]} 2. Bc4 {[%clk 0:03:00.1]}
2... Nf6 {[%clk 0:02:59.4]} 3. d3 {[%clk 0:03:00.6]} 3... c6 {[%clk 0:02:58.4]}
4. Nf3 {[%clk 0:03:00.1]} 4... d5 {[%clk 0:02:58.7]} 5. Bb3 {[%clk 0:03:00.2]}
5... Bb4+ {[%clk 0:02:58.8]} 6. Bd2 {[%clk 0:02:55.8]} 6... Bxd2+ {[%clk
0:02:58.7]} 7. Nbxd2 {[%clk 0:02:56.1]} 7... O-O {[%clk 0:02:53.5]} 8. Nxe5
{[%clk 0:02:35.7]} 8... Qe7 {[%clk 0:02:45.3]} 9. f4 {[%clk 0:02:28.6]} 9...
dxe4 {[%clk 0:02:26]} 10. dxe4 {[%clk 0:02:29]} 10... Nbd7 {[%clk 0:02:26.2]}
11. Nxd7 {[%clk 0:02:00.6]} 11... Bxd7 {[%clk 0:02:26.3]} 12. Qe2 {[%clk
0:02:00.5]} 12... Rfe8 {[%clk 0:02:23.9]} 13. e5 {[%clk 0:01:55]} 13... Nd5
{[%clk 0:02:05.7]} 14. O-O {[%clk 0:01:51.4]} 14... f6 {[%clk 0:02:02.5]} 15.
Rae1 {[%clk 0:01:46.2]} 15... fxe5 {[%clk 0:01:41.4]} 16. fxe5 {[%clk
0:01:46.3]} 16... a5 {[%clk 0:01:41.8]} 17. Bxd5+ {[%clk 0:01:23.3]} 17... cxd5
{[%clk 0:01:41.6]} 18. Nb3 {[%clk 0:01:23.9]} 18... a4 {[%clk 0:01:28.4]} 19.
Nd4 {[%clk 0:01:24]} 19... a3 {[%clk 0:01:29.3]} 20. b3 {[%clk 0:01:09.5]} 20...
Be6 {[%clk 0:01:16.5]} 21. Qe3 {[%clk 0:01:03.3]} 21... Rac8 {[%clk 0:01:14.7]}
22. c3 {[%clk 0:01:03.7]} 22... Qc5 {[%clk 0:01:10.3]} 23. Rf3 {[%clk 0:01:03]}
23... Bf7 {[%clk 0:01:10.8]} 24. Qf2 {[%clk 0:00:54.8]} 24... Bg6 {[%clk
0:01:11]} 25. Rg3 {[%clk 0:00:32.5]} 25... Rf8 {[%clk 0:01:05.4]} 26. Qe3 {[%clk
0:00:31]} 26... Rce8 {[%clk 0:01:05.7]} 27. e6 {[%clk 0:00:26.2]} 27... Be4
{[%clk 0:01:04.6]} 28. Rxg7+ {[%clk 0:00:23.9]} 28... Kh8 {[%clk 0:01:00.6]} 29.
Rf7 {[%clk 0:00:18.7]} 29... Rg8 {[%clk 0:00:55.5]} 30. g3 {[%clk 0:00:19.2]}
30... b5 {[%clk 0:00:47.8]} 31. Qf2 {[%clk 0:00:17.2]} 31... Rg6 {[%clk
0:00:45.7]} 32. Re3 {[%clk 0:00:16.2]} 32... b4 {[%clk 0:00:44.7]} 33. Ne2
{[%clk 0:00:15.5]} 33... Rgxe6 {[%clk 0:00:41.4]} 34. cxb4 {[%clk 0:00:15.8]}
34... Qc2 {[%clk 0:00:31.1]} 35. Nf4 {[%clk 0:00:15.2]} 35... Qxf2+ {[%clk
0:00:13.5]} 36. Kxf2 {[%clk 0:00:16.1]} 36... Rc6 {[%clk 0:00:14.3]} 37. Re2
{[%clk 0:00:16.8]} 37... d4 {[%clk 0:00:14.6]} 38. Rd7 {[%clk 0:00:16.8]} 38...
Rc2 {[%clk 0:00:13]} 39. Rxc2 {[%clk 0:00:16.6]} 39... Bxc2 {[%clk 0:00:13]} 40.
Rxd4 {[%clk 0:00:17.3]} 40... Bb1 {[%clk 0:00:10.1]} 41. Rd2 {[%clk 0:00:17.7]}
41... Rb8 {[%clk 0:00:08.6]} 42. Nd5 {[%clk 0:00:17.8]} 42... Rd8 {[%clk
0:00:08.9]} 43. Ke3 {[%clk 0:00:18.1]} 43... Bxa2 {[%clk 0:00:09.4]} 44. Rxa2
{[%clk 0:00:16.3]} 44... Rxd5 {[%clk 0:00:10]} 45. Rxa3 {[%clk 0:00:17]} 45...
Rd1 {[%clk 0:00:10.4]} 46. b5 {[%clk 0:00:17]} 46... Rd5 {[%clk 0:00:10.4]} 47.
Ra8+ {[%clk 0:00:15.6]} 47... Kg7 {[%clk 0:00:10.3]} 48. Ra7+ {[%clk 0:00:16.3]}
48... Kg6 {[%clk 0:00:10.4]} 49. b6 {[%clk 0:00:17]} 49... Rb5 {[%clk
0:00:10.6]} 50. b7 {[%clk 0:00:17.5]} 50... Rxb3+ {[%clk 0:00:11.1]} 51. Kd4
{[%clk 0:00:17.3]} 51... Kg5 {[%clk 0:00:07.3]} 52. Kd5 {[%clk 0:00:17]} 52...
Kg4 {[%clk 0:00:07.3]} 53. Kc6 {[%clk 0:00:17.6]} 53... Kh3 {[%clk 0:00:04.8]}
54. Ra5 {[%clk 0:00:17.7]} 54... Kxh2 {[%clk 0:00:03.5]} 1-0

[Event "Late-Titled-Tuesday-Blitz-October-03-2023"]
[Site "Chess.com"]
[Date "2023.10.03"]
[Round "7"]
[White "Joshukid"]
[Black "Levanzovsky"]
[Result "0-1"]
[WhiteElo "2553"]
[BlackElo "2470"]
[TimeControl "180+1"]
[EndTime "15:14:32 PDT"]
[Termination "Levanzovsky won by resignation"]

1. Nf3 {[%clk 0:02:58.5]} 1... Nf6 {[%clk 0:02:58.8]} 2. c4 {[%clk 0:02:58.6]}
2... g6 {[%clk 0:02:57.4]} 3. b3 {[%clk 0:02:59]} 3... Bg7 {[%clk 0:02:57.2]} 4.
Bb2 {[%clk 0:02:59.2]} 4... O-O {[%clk 0:02:57.6]} 5. g3 {[%clk 0:02:59.8]} 5...
d6 {[%clk 0:02:57.7]} 6. d4 {[%clk 0:02:59.9]} 6... a5 {[%clk 0:02:55.8]} 7. Nc3
{[%clk 0:03:00.1]} 7... Bf5 {[%clk 0:02:51.9]} 8. Bg2 {[%clk 0:03:00.5]} 8...
Ne4 {[%clk 0:02:49.1]} 9. Nh4 {[%clk 0:03:00.5]} 9... Nxc3 {[%clk 0:02:49]} 10.
Bxc3 {[%clk 0:03:01.4]} 10... Bc8 {[%clk 0:02:49]} 11. Qd2 {[%clk 0:03:01.4]}
11... a4 {[%clk 0:02:47.4]} 12. O-O {[%clk 0:03:01.7]} 12... Nc6 {[%clk
0:02:45.5]} 13. b4 {[%clk 0:02:57]} 13... e5 {[%clk 0:02:37.2]} 14. d5 {[%clk
0:02:48.3]} 14... Nd4 {[%clk 0:02:30.1]} 15. e3 {[%clk 0:02:46.5]} 15... Nf5
{[%clk 0:02:29.7]} 16. Nxf5 {[%clk 0:02:37]} 16... Bxf5 {[%clk 0:02:30.6]} 17.
e4 {[%clk 0:02:33.9]} 17... Bd7 {[%clk 0:02:30.1]} 18. f4 {[%clk 0:02:33.7]}
18... exf4 {[%clk 0:02:19]} 19. Bxg7 {[%clk 0:02:31.6]} 19... Kxg7 {[%clk
0:02:19.9]} 20. gxf4 {[%clk 0:02:30.9]} 20... Re8 {[%clk 0:02:13.7]} 21. e5
{[%clk 0:02:27.6]} 21... dxe5 {[%clk 0:01:58.6]} 22. fxe5 {[%clk 0:02:28.5]}
22... Rxe5 {[%clk 0:01:57.6]} 23. Qd4 {[%clk 0:02:13.1]} 23... Qg5 {[%clk
0:01:51.7]} 24. Rae1 {[%clk 0:02:12.9]} 24... Re8 {[%clk 0:01:50.9]} 25. h4
{[%clk 0:02:04.1]} 25... Qg3 {[%clk 0:01:45.2]} 26. Re2 {[%clk 0:02:01.1]} 26...
f6 {[%clk 0:01:30.1]} 27. Rf3 {[%clk 0:01:55.6]} 27... Qg4 {[%clk 0:01:19.1]}
28. Qxg4 {[%clk 0:01:48]} 28... Bxg4 {[%clk 0:01:20]} 29. Rxe5 {[%clk
0:01:47.7]} 29... Rxe5 {[%clk 0:01:20.4]} 30. Rf4 {[%clk 0:01:47.9]} 30... Bd7
{[%clk 0:00:58.5]} 31. c5 {[%clk 0:01:41.6]} 31... Kf7 {[%clk 0:00:44.4]} 32.
Bf1 {[%clk 0:01:30.5]} 32... Ke7 {[%clk 0:00:39.9]} 33. Bc4 {[%clk 0:01:26.5]}
33... f5 {[%clk 0:00:37.4]} 34. Kf2 {[%clk 0:01:23.6]} 34... h6 {[%clk
0:00:35.4]} 35. Rd4 {[%clk 0:01:22.5]} 35... g5 {[%clk 0:00:31.7]} 36. b5 {[%clk
0:01:22.7]} 36... a3 {[%clk 0:00:21.1]} 37. Bd3 {[%clk 0:00:53.5]} 37... f4
{[%clk 0:00:19.2]} 38. c6 {[%clk 0:00:36.7]} 38... bxc6 {[%clk 0:00:17.1]} 39.
bxc6 {[%clk 0:00:33.4]} 39... Bc8 {[%clk 0:00:14.7]} 40. Ra4 {[%clk 0:00:20.3]}
40... Rxd5 {[%clk 0:00:12.4]} 41. Rxa3 {[%clk 0:00:20.9]} 41... Kd6 {[%clk
0:00:10.7]} 42. Be4 {[%clk 0:00:20.9]} 42... Rd2+ {[%clk 0:00:08.7]} 43. Ke1
{[%clk 0:00:20.2]} 43... Rh2 {[%clk 0:00:07.2]} 44. hxg5 {[%clk 0:00:19.4]}
44... hxg5 {[%clk 0:00:08.1]} 45. Ra5 {[%clk 0:00:17.2]} 45... g4 {[%clk
0:00:06.3]} 46. Rd5+ {[%clk 0:00:17.7]} 46... Ke6 {[%clk 0:00:06.5]} 47. Rd8
{[%clk 0:00:18.4]} 47... Ba6 {[%clk 0:00:04.7]} 48. Kd1 {[%clk 0:00:14]} 48...
f3 {[%clk 0:00:04.6]} 49. Rf8 {[%clk 0:00:09.7]} 49... f2 {[%clk 0:00:04.8]} 50.
Bf5+ {[%clk 0:00:05.3]} 50... Ke7 {[%clk 0:00:04.6]} 0-1